[Event "VII Cape Verde Championship 2023"]
[Site "Ponta do Sol"]
[Date "2023.12.08"]
[Round "7.3"]
[White "Silva, Bryan Jorge"]
[Black "Santos, Kelim Morais"]
[Result "1-0"]
[ECO "C00"]
[WhiteElo "1586"]
[BlackElo "1436"]
[Annotator "NA RC"]
[PlyCount "61"]
[EventDate "2023.11.30"]
[EventType "tourn"]
[EventCountry "KAP"]
[SourceTitle "playchess.com"]
[Source "ChessBase"]
[SourceQuality "1"]
[TimeControl "40/5400+30:1800+30"]

1. e4 {[%emt 0:00:03]} e6 {[%emt 0:06:42]} 2. d3 {[%emt 0:00:15]} Nc6 {[%emt 0:01:50]} 3. Nf3 {[%emt 0:00:26]} d5 {[%emt 0:03:17]} 4. Nbd2 {[%emt 0:00:34]} dxe4 {[%emt 0:04:34]} 5. Nxe4 {[%emt 0:00:43]} Be7 {[%emt 0:08:48]} 6. g3 {[%emt 0:01:38]} Nf6 {[%emt 0:00:21]} 7. Qe2 {[%emt 0:00:14]} e5 {[%emt 0:06:53]} 8. Bg2 {[%emt 0:10:41]} Bg4 {[%emt 0:02:13]} 9. c3 {[%emt 0:02:27]} Nxe4 {[%emt 0:04:27]} 10. Qxe4 {[%emt 0:00:26]} Bxf3 {[%emt 0:01:42]} 11. Qxf3 {[%emt 0:00:41]} Bg5 {[%emt 0:02:53]} 12. Qf5 {[%emt 0:03:52]} Bxc1 {[%emt 0:06:41]} 13. Bxc6+ {[%emt 0:00:19]} Kf8 {[%emt 0:00:30]} 14. Bxb7 {[%emt 0:05:00]} Bxb2 {[%emt 0:00:55]} 15. Bxa8 {[%emt 0:04:53]} Bxc3+ {[%emt 0:00:07]} 16. Ke2 {[%emt 0:00:59]} Bxa1 {[%emt 0:00:27]} 17. Rxa1 {[%emt 0:00:25]} Qxa8 {[%emt 0:00:59]} 18. Qxe5 {[%emt 0:00:12]} Qc6 {[%emt 0:00:53]} 19. Rd1 {[%emt 0:03:47]} Qe6 {[%emt 0:02:22]} 20. Qxe6 {[%emt 0:00:19]} fxe6 {[%emt 0:00:07]} 21. Rc1 {[%emt 0:00:18]} Kf7 {[%emt 0:00:47]} 22. Rxc7+ {[%emt 0:00:16]} Kf6 {[%emt 0:00:12]} 23. Rxa7 {[%emt 0:00:33]} Rb8 {[%emt 0:00:10]} 24. a4 {[%emt 0:00:15]} Rb2+ {[%emt 0:00:22]} 25. Ke3 {[%emt 0:00:09]} h5 {[%emt 0:01:47]} 26. h4 {[%emt 0:00:24]} g6 {[%emt 0:01:33]} 27. a5 {[%emt 0:00:21]} Ra2 {[%emt 0:05:49]} 28. a6 {[%emt 0:00:18]} e5 {[%emt 0:00:21]} 29. Ra8 {[%emt 0:00:27]} Ke7 {[%emt 0:02:16]} 30. a7 {[%emt 0:00:23]} Kd7 {[%emt 0:01:32]} 31. Rg8 {[%emt 0:00:13]} 1-0

[Event "VII Cape Verde Championship 2023"]
[Site "Ponta do Sol"]
[Date "2023.12.08"]
[Round "7.4"]
[White "Monteiro, Antonio David Cabral"]
[Black "Rodriguez Guevara, Celia M."]
[Result "0-1"]
[ECO "B13"]
[WhiteElo "1801"]
[BlackElo "1746"]
[Annotator "NA RC"]
[PlyCount "34"]
[EventDate "2023.11.30"]
[EventType "tourn"]
[EventCountry "KAP"]
[SourceTitle "playchess.com"]
[Source "ChessBase"]
[SourceQuality "1"]
[TimeControl "40/5400+30:1800+30"]

1. d4 {[%emt 0:00:08]} d5 {[%emt 0:01:24]} 2. Bf4 {[%emt 0:00:13]} c5 {[%emt 0:00:44]} 3. e3 {[%emt 0:00:23]} cxd4 {[%emt 0:01:49]} 4. exd4 {[%emt 0:00:44]} Nc6 {[%emt 0:00:17]} 5. c3 {[%emt 0:02:19]} f6 {[%emt 0:23:19]} 6. Bd3 {[%emt 0:04:51]} e5 {[%emt 0:05:33]} 7. Qh5+ {[%emt 0:04:10]} g6 {[%emt 0:00:37]} 8. Bxg6+ {[%emt 0:00:18]} hxg6 {[%emt 0:00:10]} 9. Qxh8 {[%emt 0:01:28]} exf4 {[%emt 0:00:38]} 10. Qxg8 {[%emt 0:01:05]} Bf5 {[%emt 0:03:00]} 11. Ne2 {[%emt 0:01:11]} Qd7 {[%emt 0:00:26]} 12. O-O {[%emt 0:03:24]} O-O-O {[%emt 0:00:49]} 13. Qh8 $2 {[%emt 0:01:28]} (13. Nxf4 $15 Bh6 14. Qxd5) 13... Bg7 {[%emt 0:02:01]} 14. Qh4 $19 {[%emt 0:04:20]} g5 {[%emt 0:00:55]} 15. Qh5 {[%emt 0:00:43]} Bg4 {[%emt 0:04:47]} 16. Qg6 {[%emt 0:01:23]} Bf5 {[%emt 0:00:19]} 17. Qh5 {[%emt 0:00:48]} Rh8 {[%emt 0:52:12]} 0-1

[Event "VII Cape Verde Championship 2023"]
[Site "Ponta do Sol"]
[Date "2023.12.08"]
[Round "7.5"]
[White "Teixeira, Gil"]
[Black "Vaz, Jose Carlos"]
[Result "0-1"]
[ECO "D02"]
[WhiteElo "1820"]
[BlackElo "1833"]
[Annotator "NA RC"]
[PlyCount "53"]
[EventDate "2023.11.30"]
[EventType "tourn"]
[EventCountry "KAP"]
[SourceTitle "playchess.com"]
[Source "ChessBase"]
[SourceQuality "1"]
[TimeControl "40/5400+30:1800+30"]

1. d4 {[%emt 0:00:03]} d5 {[%emt 0:01:57]} 2. Bf4 {[%emt 0:00:20]} Nf6 {[%emt 0:00:32]} 3. Nf3 {[%emt 0:00:34]} g6 {[%emt 0:02:46]} 4. c3 {[%emt 0:02:33]} Bg7 {[%emt 0:00:25]} 5. e3 {[%emt 0:00:51]} O-O {[%emt 0:00:30]} 6. Bd3 {[%emt 0:00:11]} Nbd7 {[%emt 0:00:15]} 7. Nbd2 {[%emt 0:00:26]} Re8 {[%emt 0:00:21]} 8. O-O {[%emt 0:00:36]} c5 {[%emt 0:07:05]} 9. e4 {[%emt 0:00:39]} Nh5 {[%emt 0:00:41]} 10. Be3 {[%emt 0:00:36]} cxd4 {[%emt 0:00:10]} 11. cxd4 {[%emt 0:00:36]} dxe4 {[%emt 0:02:21]} 12. Nxe4 {[%emt 0:00:39]} Nb6 {[%emt 0:00:17]} 13. Bc4 {[%emt 0:01:20]} Nxc4 {[%emt 0:00:34]} 14. Qc1 {[%emt 0:00:35]} Nxe3 {[%emt 0:00:27]} 15. fxe3 {[%emt 0:00:42]} Bh6 {[%emt 0:00:51]} 16. Nfg5 {[%emt 0:03:01]} f5 {[%emt 0:00:53]} 17. g4 {[%emt 0:01:26]} fxe4 {[%emt 0:01:46]} 18. Nf7 {[%emt 0:01:13]} Qd5 {[%emt 0:01:01]} 19. Nxh6+ {[%emt 0:00:34]} Kg7 {[%emt 0:00:17]} 20. Nf5+ {[%emt 0:01:52]} gxf5 {[%emt 0:01:57]} 21. gxh5 {[%emt 0:00:19]} Rg8 {[%emt 0:00:16]} 22. Kh1 {[%emt 0:00:59]} Kh8 {[%emt 0:00:14]} 23. Rg1 {[%emt 0:00:29]} Be6 {[%emt 0:02:00]} 24. Qc7 {[%emt 0:00:26]} Qd6 $19 {[%emt 0:03:04]} 25. Qxb7 {[%emt 0:00:26]} Rab8 {[%emt 0:00:16]} 26. Qxa7 {[%emt 0:00:44]} Rxb2 {[%emt 0:00:19]} 27. Rg3 {[%emt 0:01:51]} 0-1

[Event "VII Cape Verde Championship 2023"]
[Site "Ponta do Sol"]
[Date "2023.12.10"]
[Round "8.1"]
[White "Alho, Diogo"]
[Black "Vaz, Jose Carlos"]
[Result "1-0"]
[ECO "E90"]
[WhiteElo "2233"]
[BlackElo "1833"]
[Annotator "ChessBase"]
[PlyCount "95"]
[EventDate "2023.11.30"]
[EventType "tourn"]
[EventCountry "KAP"]
[SourceTitle "playchess.com"]
[Source "ChessBase"]
[SourceQuality "1"]
[TimeControl "40/5400+30:1800+30"]

1. d4 {[%emt 0:02:01]} g6 {[%emt 0:00:58]} 2. c4 {[%emt 0:00:07]} Nf6 {[%emt 0:00:16]} 3. Nc3 {[%emt 0:00:06]} Bg7 {[%emt 0:00:20]} 4. e4 {[%emt 0:00:25]} d6 {[%emt 0:00:19]} 5. h3 {[%emt 0:01:06]} Nbd7 {[%emt 0:00:38]} 6. Nf3 {[%emt 0:00:08]} O-O {[%emt 0:00:44]} 7. Be3 {[%emt 0:00:09]} e5 {[%emt 0:00:26]} 8. d5 {[%emt 0:00:11]} Nc5 {[%emt 0:01:28]} 9. Nd2 {[%emt 0:00:16]} a5 {[%emt 0:00:34]} 10. g4 {[%emt 1:31:01]} Bd7 {[%emt 1:29:47]} 11. Rg1 {[%emt 0:00:00]} Ne8 {[%emt 0:00:00]} 12. Nb3 {[%emt 0:00:00]} b6 {[%emt 0:00:00]} 13. Be2 {[%emt 0:00:00]} a4 {[%emt 0:00:00]} 14. Nc1 {[%emt 0:00:00]} Qh4 {[%emt 0:00:00]} 15. Nd3 {[%emt 0:00:00]} Bh6 {[%emt 0:00:00]} 16. g5 {[%emt 0:00:00]} Bg7 {[%emt 0:00:00]} 17. Nxc5 {[%emt 0:00:00]} bxc5 {[%emt 0:00:00]} 18. Bg4 {[%emt 0:00:00]} f5 {[%emt 0:00:00]} 19. gxf6 {[%emt 0:00:00]} Nxf6 {[%emt 0:00:00]} 20. Bg5 {[%emt 0:00:00]} Bxg4 {[%emt 0:00:00]} 21. Bxh4 {[%emt 0:00:00]} Bxd1 {[%emt 0:00:00]} 22. Kxd1 {[%emt 0:00:00]} Nh5 {[%emt 0:00:00]} 23. Kc2 {[%emt 0:00:00]} Rf3 {[%emt 0:00:00]} 24. Rh1 {[%emt 0:00:00]} Nf4 {[%emt 0:00:00]} 25. Bg3 {[%emt 0:00:00]} Bh6 {[%emt 0:00:00]} 26. Rad1 {[%emt 0:00:00]} Nh5 {[%emt 0:00:00]} 27. Rd3 {[%emt 0:00:00]} Rf7 {[%emt 0:00:00]} 28. Rh2 {[%emt 0:00:00]} Kf8 {[%emt 0:00:00]} 29. Nb5 {[%emt 0:00:00]} Ke8 {[%emt 0:00:00]} 30. Rg2 {[%emt 0:00:00]} Kd7 {[%emt 0:00:00]} 31. Ra3 {[%emt 0:00:00]} c6 {[%emt 0:00:00]} 32. dxc6+ {[%emt 0:00:00]} Kxc6 {[%emt 0:00:00]} 33. Rd3 {[%emt 0:00:00]} Bf8 {[%emt 0:00:00]} 34. Rg1 {[%emt 0:00:00]} Nf4 {[%emt 0:00:00]} 35. Bxf4 {[%emt 0:00:00]} Rxf4 {[%emt 0:00:00]} 36. f3 {[%emt 0:00:01]} Be7 {[%emt 0:00:00]} 37. Nc3 {[%emt 0:02:21]} Rh4 {[%emt 0:00:00]} 38. Rh1 {[%emt 0:01:11]} a3 {[%emt 0:00:00]} 39. b4 {[%emt 0:03:02]} cxb4 {[%emt 0:00:00]} 40. Nd5 {[%emt 0:00:02]} Bd8 {[%emt 0:00:00]} 41. Nxb4+ {[%emt 0:30:18]} Kc7 {[%emt 0:00:00]} 42. Rhd1 {[%emt 0:05:21]} Rxh3 {[%emt 0:00:01]} 43. Rxd6 {[%emt 0:03:31]} Rh2+ {[%emt 0:02:16]} 44. Kc3 {[%emt 0:00:00]} Bg5 {[%emt 0:00:00]} 45. Rd7+ {[%emt 0:00:00]} Kc8 {[%emt 0:00:00]} 46. Rf7 {[%emt 0:00:00]} Ra5 {[%emt 0:00:00]} 47. Rdd7 {[%emt 0:00:00]} Rc5 {[%emt 0:00:00]} 48. Ra7 {[%emt 0:00:00]} 1-0

[Event "VII Cape Verde Championship 2023"]
[Site "Ponta do Sol"]
[Date "2023.12.09"]
[Round "8.2"]
[White "Rodriguez Guevara, Celia M."]
[Black "Teixeira, Gil"]
[Result "1-0"]
[ECO "D13"]
[WhiteElo "1746"]
[BlackElo "1820"]
[Annotator "NA"]
[PlyCount "57"]
[EventDate "2023.11.30"]
[EventType "tourn"]
[EventCountry "KAP"]
[SourceTitle "playchess.com"]
[Source "ChessBase"]
[SourceQuality "1"]
[TimeControl "40/5400+30:1800+30"]

1. d4 {[%emt 0:00:15]} d5 {[%emt 0:01:44]} 2. c4 {[%emt 0:03:45]} c6 {[%emt 0:01:26]} 3. cxd5 {[%emt 0:02:03]} cxd5 {[%emt 0:00:28]} 4. Nc3 {[%emt 0:00:56]} Nf6 {[%emt 0:01:02]} 5. h3 {[%emt 0:01:29]} Nc6 {[%emt 0:00:54]} 6. Nf3 {[%emt 0:01:45]} Bf5 {[%emt 0:00:27]} 7. Bf4 {[%emt 0:11:55]} e6 {[%emt 1:27:59]} 8. e3 {[%emt 0:04:24]} Bb4 {[%emt 0:00:00]} 9. a3 {[%emt 0:02:15]} Bxc3+ {[%emt 0:00:00]} 10. bxc3 {[%emt 0:00:02]} O-O {[%emt 0:00:00]} 11. c4 {[%emt 0:05:22]} Ne4 {[%emt 0:00:00]} 12. Nd2 {[%emt 0:06:37]} Qa5 {[%emt 0:00:00]} 13. f3 {[%emt 0:02:30]} Nc3 {[%emt 0:00:00]} 14. Qb3 {[%emt 0:00:25]} b6 {[%emt 0:00:00]} 15. Rc1 {[%emt 0:00:38]} Na4 {[%emt 0:00:00]} 16. cxd5 {[%emt 0:00:54]} Ne7 {[%emt 0:00:00]} 17. Bb5 {[%emt 0:01:40]} Nxd5 {[%emt 0:00:00]} 18. Qxa4 {[%emt 0:00:33]} Qxa4 {[%emt 0:00:00]} 19. Bxa4 {[%emt 0:00:08]} Rac8 {[%emt 0:00:00]} 20. O-O {[%emt 0:04:01]} Bd3 {[%emt 0:00:00]} 21. Rfe1 {[%emt 0:02:12]} Nc3 {[%emt 0:00:00]} 22. Bd1 {[%emt 0:00:21]} Nb5 {[%emt 0:00:00]} 23. Bb3 {[%emt 0:02:41]} Rfd8 {[%emt 0:00:00]} 24. Bc4 {[%emt 0:07:08]} Bxc4 {[%emt 0:00:00]} 25. Nxc4 {[%emt 0:01:58]} Rc6 {[%emt 0:00:00]} 26. a4 {[%emt 0:05:04]} Nc7 {[%emt 0:00:00]} 27. Nxb6 {[%emt 0:04:26]} Rxc1 {[%emt 0:00:00]} 28. Rxc1 {[%emt 0:00:02]} axb6 {[%emt 0:00:00]} 29. Rxc7 {[%emt 0:00:16]} 1-0

[Event "VII Cape Verde Championship 2023"]
[Site "Ponta do Sol"]
[Date "2023.12.10"]
[Round "8.3"]
[White "Santos, Kelim Morais"]
[Black "Monteiro, Antonio David Cabral"]
[Result "0-1"]
[ECO "E61"]
[WhiteElo "1436"]
[BlackElo "1801"]
[Annotator "NA"]
[PlyCount "74"]
[EventDate "2023.11.30"]
[EventType "tourn"]
[EventCountry "KAP"]
[SourceTitle "playchess.com"]
[Source "ChessBase"]
[SourceQuality "1"]
[TimeControl "40/5400+30:1800+30"]

1. c4 {[%emt 0:12:57]} Nf6 {[%emt 0:00:36]} 2. Nc3 {[%emt 0:00:15]} g6 {[%emt 0:01:03]} 3. d4 {[%emt 0:00:27]} Bg7 {[%emt 0:00:22]} 4. Nf3 {[%emt 0:00:42]} d6 {[%emt 0:01:20]} 5. Bf4 {[%emt 0:04:11]} a5 {[%emt 0:03:12]} 6. e4 {[%emt 0:05:27]} Nh5 {[%emt 0:09:31]} 7. Be3 {[%emt 0:03:09]} Nc6 {[%emt 0:01:24]} 8. h3 {[%emt 0:01:33]} Nf6 {[%emt 0:03:34]} 9. e5 {[%emt 0:09:02]} dxe5 {[%emt 0:02:55]} 10. dxe5 {[%emt 0:06:59]} Qxd1+ {[%emt 0:00:21]} 11. Rxd1 {[%emt 0:00:28]} Nd7 {[%emt 0:08:03]} 12. Nb5 {[%emt 0:05:44]} O-O {[%emt 0:03:54]} 13. Nbd4 {[%emt 0:00:22]} Ndxe5 {[%emt 0:00:48]} 14. Nxc6 {[%emt 0:00:20]} Nxc6 {[%emt 0:03:45]} 15. Rd2 {[%emt 0:01:08]} a4 {[%emt 0:03:06]} 16. Bc5 {[%emt 0:10:49]} b6 {[%emt 0:02:42]} 17. Nd4 {[%emt 0:02:35]} Ne5 {[%emt 0:02:57]} 18. Bxe7 {[%emt 0:33:22]} Re8 {[%emt 0:01:12]} 19. f4 {[%emt 0:00:00]} Nxc4 {[%emt 0:02:13]} 20. Bxc4 {[%emt 0:01:00]} Rxe7+ {[%emt 0:47:32]} 21. Kf2 {[%emt 0:00:00]} Bb7 {[%emt 0:00:00]} 22. Nf3 {[%emt 0:00:00]} Re4 {[%emt 0:00:00]} 23. Rc1 {[%emt 0:00:00]} Rxf4 {[%emt 0:00:00]} 24. Kg3 {[%emt 0:00:00]} Rf6 {[%emt 0:00:00]} 25. Ne5 {[%emt 0:00:00]} b5 {[%emt 0:00:00]} 26. Bd5 {[%emt 0:00:23]} Bxd5 {[%emt 0:00:00]} 27. Rxd5 {[%emt 0:00:14]} Re6 {[%emt 0:00:00]} 28. Ng4 {[%emt 0:01:09]} c6 {[%emt 0:00:00]} 29. Rd2 {[%emt 0:00:39]} h5 {[%emt 0:00:00]} 30. Nh2 {[%emt 0:00:21]} Bh6 {[%emt 0:00:00]} 31. Nf1 {[%emt 0:00:27]} Bxd2 {[%emt 0:00:00]} 32. Nxd2 {[%emt 0:00:14]} Rc8 {[%emt 0:00:00]} 33. Kf4 {[%emt 0:00:24]} c5 {[%emt 0:00:00]} 34. Ne4 {[%emt 0:01:33]} c4 {[%emt 0:00:00]} 35. Nc3 {[%emt 0:00:40]} Rc5 {[%emt 0:00:00]} 36. Kg3 {[%emt 0:01:19]} Rf5 {[%emt 0:00:00]} 37. Rd1 {[%emt 0:00:21]} a3 {[%emt 0:00:00]} 0-1

[Event "VII Cape Verde Championship 2023"]
[Site "Ponta do Sol"]
[Date "2023.12.10"]
[Round "8.4"]
[White "Barros, Luis"]
[Black "Silva, Bryan Jorge"]
[Result "0-1"]
[ECO "B89"]
[WhiteElo "1656"]
[BlackElo "1586"]
[Annotator "NA"]
[PlyCount "158"]
[EventDate "2023.11.30"]
[EventType "tourn"]
[EventCountry "KAP"]
[SourceTitle "playchess.com"]
[Source "ChessBase"]
[SourceQuality "1"]
[TimeControl "40/5400+30:1800+30"]

1. e4 {[%emt 0:01:49]} c5 {[%emt 0:00:15]} 2. Nf3 {[%emt 0:01:28]} d6 {[%emt 0:01:04]} 3. Nc3 {[%emt 0:03:22]} Nf6 {[%emt 0:00:31]} 4. Bc4 {[%emt 0:00:23]} e6 {[%emt 0:00:56]} 5. d4 {[%emt 0:01:11]} cxd4 {[%emt 0:00:31]} 6. Nxd4 {[%emt 0:00:11]} Nc6 {[%emt 0:00:41]} 7. Be3 {[%emt 0:03:09]} Be7 {[%emt 0:04:05]} 8. Qd2 {[%emt 0:01:00]} Ng4 {[%emt 0:00:52]} 9. Nxc6 {[%emt 0:01:14]} bxc6 {[%emt 0:00:18]} 10. Bf4 {[%emt 0:00:17]} d5 {[%emt 0:02:15]} 11. Be2 {[%emt 0:01:35]} Nf6 {[%emt 0:00:53]} 12. e5 {[%emt 0:01:17]} Nd7 {[%emt 0:00:22]} 13. a3 {[%emt 0:04:13]} a5 {[%emt 0:03:43]} 14. O-O {[%emt 1:16:21]} O-O {[%emt 1:21:04]} 15. Bg3 {[%emt 0:00:00]} Ba6 {[%emt 0:00:00]} 16. b3 {[%emt 0:00:00]} f6 {[%emt 0:00:00]} 17. Rfe1 {[%emt 0:00:00]} f5 {[%emt 0:00:00]} 18. Na4 {[%emt 0:00:00]} Bxe2 {[%emt 0:00:00]} 19. Rxe2 {[%emt 0:00:00]} Nc5 {[%emt 0:00:00]} 20. Nxc5 {[%emt 0:00:00]} Bxc5 {[%emt 0:00:00]} 21. c3 {[%emt 0:00:00]} Ba7 {[%emt 0:00:00]} 22. Kh1 {[%emt 0:00:00]} c5 {[%emt 0:00:00]} 23. Bf4 {[%emt 0:00:00]} Qc7 {[%emt 0:00:00]} 24. Qc1 {[%emt 0:00:00]} Bb6 {[%emt 0:00:00]} 25. Qd1 {[%emt 0:00:00]} Rac8 {[%emt 0:00:00]} 26. Rc1 {[%emt 0:00:00]} Qb7 {[%emt 0:00:00]} 27. Rd2 {[%emt 0:00:00]} Qe7 {[%emt 0:00:00]} 28. Qf3 {[%emt 0:00:00]} Rc7 {[%emt 0:00:00]} 29. Qg3 {[%emt 0:00:00]} Kh8 {[%emt 0:00:00]} 30. h4 {[%emt 0:00:00]} Qf7 {[%emt 0:00:00]} 31. Qf3 {[%emt 0:00:00]} h5 {[%emt 0:00:00]} 32. Rcd1 {[%emt 0:00:00]} Qg6 {[%emt 0:00:00]} 33. Bg5 {[%emt 0:00:00]} Rfc8 {[%emt 0:00:00]} 34. c4 {[%emt 0:00:00]} d4 {[%emt 0:00:00]} 35. Rd3 {[%emt 0:00:00]} Qf7 {[%emt 0:00:00]} 36. Qf4 {[%emt 0:00:00]} Kh7 {[%emt 0:00:00]} 37. Rf3 {[%emt 0:00:00]} Rf8 {[%emt 0:00:00]} 38. Rg1 {[%emt 0:00:00]} Rd7 {[%emt 0:00:00]} 39. Qd2 {[%emt 0:00:00]} Qe8 {[%emt 0:00:00]} 40. Qd3 {[%emt 0:00:00]} Kh8 {[%emt 0:00:00]} 41. Bf4 {[%emt 0:18:42]} Qf7 {[%emt 0:28:38]} 42. Rg3 {[%emt 0:00:25]} g6 {[%emt 0:00:43]} 43. Bg5 {[%emt 0:01:13]} Kh7 {[%emt 0:01:13]} 44. Rd1 {[%emt 0:01:23]} Bc7 {[%emt 0:00:22]} 45. Bf4 {[%emt 0:00:31]} Bb6 {[%emt 0:00:15]} 46. Qe2 {[%emt 0:00:44]} Rg8 {[%emt 0:00:30]} 47. Rdd3 {[%emt 0:00:45]} Rc8 {[%emt 0:01:45]} 48. Qf3 {[%emt 0:01:15]} Qe8 {[%emt 0:00:51]} 49. Bd2 {[%emt 0:00:39]} Ra7 {[%emt 0:00:59]} 50. Qf4 {[%emt 0:02:50]} Qf8 {[%emt 0:00:34]} 51. Qf3 {[%emt 0:01:56]} Qf7 {[%emt 0:00:49]} 52. Qe2 {[%emt 0:01:32]} Qe7 {[%emt 0:00:37]} 53. Bg5 {[%emt 0:00:25]} Qf7 {[%emt 0:00:22]} 54. Bf6 {[%emt 0:01:36]} Bd8 {[%emt 0:01:10]} 55. Rg5 {[%emt 0:02:15]} Bxf6 {[%emt 0:01:34]} 56. exf6 {[%emt 0:00:27]} Qxf6 {[%emt 0:00:13]} 57. Rdg3 {[%emt 0:00:44]} Rg7 {[%emt 0:02:27]} 58. f4 {[%emt 0:01:06]} Rd8 {[%emt 0:00:35]} 59. Qd2 {[%emt 0:01:13]} d3 {[%emt 0:01:16]} 60. Re3 {[%emt 0:02:45]} Re7 {[%emt 0:03:15]} 61. Re5 {[%emt 0:00:25]} Rc7 {[%emt 0:00:45]} 62. Kh2 {[%emt 0:02:23]} Rdd7 {[%emt 0:00:12]} 63. Kh3 {[%emt 0:00:35]} Qe7 {[%emt 0:00:21]} 64. Rg3 {[%emt 0:00:24]} Qd6 {[%emt 0:00:14]} 65. Rge3 {[%emt 0:01:03]} Qb6 {[%emt 0:01:17]} 66. Rxe6 {[%emt 0:01:00]} Qxb3 {[%emt 0:00:22]} 67. Rg3 {[%emt 0:00:35]} Qc2 {[%emt 0:00:30]} 68. Qxa5 {[%emt 0:02:14]} Qc1 {[%emt 0:01:19]} 69. Rgxg6 {[%emt 0:00:34]} d2 {[%emt 0:00:00]} 70. Qa8 {[%emt 0:00:00]} Qh1+ {[%emt 0:00:00]} 71. Kg3 {[%emt 0:00:00]} Rd3+ {[%emt 0:00:00]} 72. Kf2 {[%emt 0:00:00]} Qxh4+ {[%emt 0:00:00]} 73. g3 {[%emt 0:00:00]} Qh2+ {[%emt 0:00:00]} 74. Qg2 {[%emt 0:00:00]} Qxg2+ {[%emt 0:00:44]} 75. Kxg2 {[%emt 0:00:00]} d1=Q {[%emt 0:01:09]} 76. Rh6+ {[%emt 0:00:00]} Kg8 {[%emt 0:00:17]} 77. Re8+ {[%emt 0:00:00]} Kf7 {[%emt 0:01:22]} 78. Rhh8 {[%emt 0:00:00]} Rd2+ {[%emt 0:00:15]} 79. Kh3 {[%emt 0:00:00]} Qh1# {[%emt 0:00:11]} 0-1

[Event "VII Cape Verde Championship 2023"]
[Site "Ponta do Sol"]
[Date "2023.12.10"]
[Round "8.5"]
[White "Mirulla, David"]
[Black "Ortega Amarelle, Mariano"]
[Result "0-1"]
[ECO "B88"]
[WhiteElo "1929"]
[BlackElo "2478"]
[Annotator "RC"]
[PlyCount "52"]
[EventDate "2023.11.30"]
[EventType "tourn"]
[EventCountry "KAP"]
[SourceTitle "playchess.com"]
[Source "ChessBase"]
[SourceQuality "1"]
[TimeControl "40/5400+30:1800+30"]

1. e4 {[%emt 0:01:51]} c5 {[%emt 0:00:13]} 2. Nf3 {[%emt 0:00:07]} Nc6 {[%emt 0:00:27]} 3. d4 {[%emt 0:00:07]} cxd4 {[%emt 0:00:06]} 4. Nxd4 {[%emt 0:00:05]} Nf6 {[%emt 0:00:03]} 5. Nc3 {[%emt 0:00:30]} d6 {[%emt 0:00:14]} 6. Bc4 {[%emt 0:03:04]} e6 {[%emt 0:01:32]} 7. h3 {[%emt 0:06:58]} Be7 {[%emt 0:04:19]} 8. Be3 {[%emt 0:01:26]} O-O {[%emt 0:03:07]} 9. Qd2 {[%emt 0:08:12]} a6 {[%emt 0:17:34]} 10. O-O {[%emt 0:13:14]} Na5 {[%emt 0:09:19]} 11. Bd3 {[%emt 0:07:48]} Qc7 {[%emt 0:01:18]} 12. Na4 {[%emt 0:10:12]} Nc6 {[%emt 0:21:03]} 13. f4 {[%emt 0:06:25]} Nxd4 {[%emt 0:08:47]} 14. Bxd4 {[%emt 0:00:17]} e5 {[%emt 0:00:27]} 15. fxe5 {[%emt 0:05:56]} dxe5 {[%emt 0:00:08]} 16. Be3 {[%emt 0:02:16]} Be6 {[%emt 0:04:51]} 17. Nb6 {[%emt 0:01:40]} Rad8 {[%emt 0:01:02]} 18. Qf2 {[%emt 0:00:14]} Qc6 {[%emt 0:02:13]} 19. Rae1 {[%emt 0:03:23]} Bb4 {[%emt 0:09:35]} 20. Re2 {[%emt 0:06:28]} Nxe4 {[%emt 0:02:46]} 21. Qh4 {[%emt 0:01:56]} f5 {[%emt 0:01:59]} 22. Bxe4 {[%emt 0:08:25]} fxe4 {[%emt 0:02:01]} 23. Rxf8+ {[%emt 0:04:29]} Rxf8 {[%emt 0:00:06]} 24. Rf2 {[%emt 0:01:18]} Re8 {[%emt 0:01:23]} 25. Re2 {[%emt 0:02:01]} Ba5 {[%emt 0:00:56]} 26. Qf2 {[%emt 0:02:05]} Rf8 {[%emt 0:00:09]} 0-1

[Event "VII Cape Verde Championship 2023"]
[Site "Ponta do Sol"]
[Date "2023.12.10"]
[Round "9.1"]
[White "Ortega Amarelle, Mariano"]
[Black "Alho, Diogo"]
[Result "1-0"]
[ECO "C41"]
[WhiteElo "2478"]
[BlackElo "2233"]
[Annotator "RC"]
[PlyCount "103"]
[EventDate "2023.11.30"]
[EventType "tourn"]
[EventCountry "KAP"]
[SourceTitle "playchess.com"]
[Source "ChessBase"]
[SourceQuality "1"]
[TimeControl "40/5400+30:1800+30"]

1. e4 {[%emt 0:02:06]} e5 {[%emt 0:01:15]} 2. Nf3 {[%emt 0:00:51]} d6 {[%emt 0:00:12]} 3. d4 {[%emt 0:00:13]} Nf6 {[%emt 0:00:40]} 4. Nc3 {[%emt 0:09:12]} Nbd7 {[%emt 0:00:35]} 5. Bc4 {[%emt 0:01:29]} Be7 {[%emt 0:00:12]} 6. O-O {[%emt 0:00:17]} c6 {[%emt 0:01:16]} 7. a4 {[%emt 0:01:05]} Qc7 {[%emt 0:05:10]} 8. Re1 {[%emt 0:00:26]} O-O {[%emt 0:02:04]} 9. h3 {[%emt 0:03:06]} h6 {[%emt 1:23:36]} 10. b3 Re8 11. Bb2 Nf8 {[%emt 0:00:00]} 12. Bd3 {[%emt 0:07:35]} Ng6 {[%emt 0:00:00]} 13. Ne2 {[%emt 0:05:22]} Bf8 {[%emt 0:00:00]} 14. Ng3 {[%emt 0:01:00]} Nf4 {[%emt 0:00:00]} 15. Bf1 {[%emt 0:02:13]} Bd7 {[%emt 0:00:00]} 16. Qd2 {[%emt 0:02:26]} Ng6 {[%emt 0:00:00]} 17. a5 {[%emt 0:00:59]} Rad8 {[%emt 0:00:00]} 18. c4 {[%emt 0:00:36]} Bc8 {[%emt 0:00:00]} 19. Qc2 {[%emt 0:11:03]} Nf4 {[%emt 0:00:00]} 20. Red1 {[%emt 0:23:59]} Nd7 {[%emt 0:00:00]} 21. Nf5 {[%emt 0:03:18]} g6 {[%emt 0:00:00]} 22. Ne3 {[%emt 0:04:24]} b6 {[%emt 0:00:00]} 23. g3 {[%emt 0:01:21]} Nh5 {[%emt 0:00:00]} 24. Ng4 {[%emt 0:04:43]} Bg7 {[%emt 0:00:00]} 25. Bg2 {[%emt 0:07:20]} Rf8 {[%emt 0:00:00]} 26. Ne3 {[%emt 0:04:39]} Nhf6 {[%emt 0:00:52]} 27. Ba3 {[%emt 0:00:31]} c5 {[%emt 0:02:26]} 28. dxe5 {[%emt 0:01:01]} dxe5 {[%emt 0:06:12]} 29. axb6 axb6 {[%emt 0:00:00]} 30. b4 {[%emt 0:01:31]} Bb7 {[%emt 0:00:00]} 31. Nd5 {[%emt 0:01:11]} Qd6 {[%emt 0:00:00]} 32. Rab1 {[%emt 0:00:40]} Nxd5 {[%emt 0:02:00]} 33. cxd5 Ba6 {[%emt 0:00:00]} 34. bxc5 {[%emt 0:00:51]} Nxc5 {[%emt 0:00:25]} 35. Bf1 {[%emt 0:01:09]} Bxf1 {[%emt 0:01:05]} 36. Kxf1 Ra8 37. Bxc5 bxc5 {[%emt 0:00:18]} 38. Nd2 {[%emt 0:01:17]} f5 {[%emt 0:01:12]} 39. Nc4 Qa6 {[%emt 0:00:00]} 40. Rb6 {[%emt 0:00:04]} Qa4 {[%emt 0:00:21]} 41. Qe2 {[%emt 0:12:54]} fxe4 {[%emt 0:14:09]} 42. Kg1 {[%emt 0:20:38]} g5 {[%emt 0:17:30]} 43. Rb7 {[%emt 0:00:30]} Rf3 {[%emt 0:00:30]} 44. Rf1 {[%emt 0:00:30]} Rd3 {[%emt 0:00:30]} 45. Qd2 {[%emt 0:00:30]} Rf3 46. Qe2 {[%emt 0:00:30]} Rc3 {[%emt 0:01:00]} 47. Ne3 {[%emt 0:00:30]} Rf8 {[%emt 0:00:30]} 48. Qh5 {[%emt 0:00:30]} Qe8 {[%emt 0:00:30]} 49. Rxg7+ {[%emt 0:00:30]} Kxg7 {[%emt 0:00:30]} 50. Nf5+ Kf6 {[%emt 0:00:30]} 51. Qxh6+ {[%emt 0:01:00]} Kxf5 {[%emt 0:00:30]} 52. Qh5 {[%emt 0:00:30]} 1-0